bitfinex/quotes_SOLUSD_20250616
["timestamp","ask_amount","ask_price","bid_price","bid_amount"]
[1750071813164,6.32294244,156.06,156.02,60.80212653]
[1750071813359,6.32294244,156.06,156.02,54.47918409]
[1750071814061,6.32294244,156.04,156.02,48.06974941]
[1750071814261,6.32294244,156.04,156.02,16.02358671]
[1750071814464,6.32294244,156.03,156.02,16.02358671]
[1750071814970,6.32294244,156.04,156.02,16.02358671]
[1750071817285,6.32294244,156.05,156.02,16.02358671]
[1750071817493,6.32294244,156.06,156.02,22.34652915]
[1750071818201,9.6653811,156.1,156.05,6.32294244]
[1750071818494,9.6653811,156.1,156.06,6.32294244]
[1750071819266,3.34243866,156.1,156.07,22.42583455]
[1750071819462,9.6653811,156.1,156.07,22.42583455]
[1750071822096,3.34243866,156.1,156.07,28.74877699]
[1750071822289,6.32294244,156.12,156.07,60.7856835]
[1750071822492,6.32294244,156.11,156.07,60.7856835]
[1750071824100,6.32294244,156.11,156.07,32.03690651]
[1750071824289,6.32294244,156.11,156.07,38.35984895]
[1750071825902,29.34141252,156.13,156.08,6.32294244]
[1750071826103,9.66435496,156.13,156.09,6.32294244]
[1750071826305,9.66435496,156.13,156.08,6.32294244]
[1750071827489,9.66435496,156.13,156.1,22.42152465]
[1750071828383,6.32294244,156.12,156.1,22.42152465]
[1750071829709,6.32294244,156.12,156.1,16.01537475]
[1750071830816,6.32294244,156.11,156.1,16.01537475]
[1750071830990,6.32294244,156.11,156.09,6.40656031]
[1750071831320,6.32294244,156.1,156.09,6.40656031]
[1750071831687,6.32294244,156.1,156.07,16.01743844]
[1750071832012,6.32294244,156.09,156.07,16.01743844]
[1750071832399,6.32294244,156.1,156.07,16.01743844]
[1750071832920,6.32294244,156.09,156.07,16.01743844]
[1750071835795,6.32294244,156.08,156.07,16.01743844]
[1750071836834,6.32294244,156.08,156.05,54.46966869]
[1750071837799,6.32294244,156.06,156.05,22.42870873]
[1750071838119,6.32294244,156.06,156.05,6.40820249]
[1750071838604,11.04352699,156.08,156.02,16.02257035]
[1750071838810,6.32294244,156.03,156.02,16.02257035]
[1750071838998,4.72058455,156.07,156.02,16.02257035]
[1750071839202,6.32294244,156.06,156.02,22.34551279]
[1750071839401,6.32294244,156.05,156.02,16.02257035]
[1750071841319,4.72058455,156.08,156.02,16.02257035]
[1750071841511,27.5269,156.09,156.03,6.32294244]
[1750071841512,6.32294244,156.07,156.03,6.32294244]
[1750071842399,27.5269,156.09,156.03,6.32294244]
[1750071842636,6.32294244,156.07,156.03,6.32294244]
[1750071842809,27.5269,156.09,156.03,6.32294244]
[1750071842810,6.32294244,156.08,156.04,54.47321199]
[1750071843012,11.04474659,156.08,156.04,54.47321199]
[1750071844624,6.32294244,156.08,156.04,54.47321199]
[1750071845124,35.59085927,156.09,156.04,54.47321199]
[1750071845318,6.32294244,156.08,156.04,38.36600832]
[1750071846525,6.32294244,156.08,156.04,60.79615443]
[1750071846724,30.86905512,156.09,156.04,60.79615443]
[1750071847036,6.32294244,156.08,156.04,60.79615443]
[1750071848223,6.32294244,156.07,156.04,54.47321199]
[1750071849537,6.32294244,156.07,156.04,32.04306588]
[1750071850747,6.32294244,156.06,156.04,32.04306588]
[1750071851314,6.32294244,156.06,156.02,6.32294244]
[1750071851514,6.32294244,156.05,156.01,54.48368693]
[1750071851738,6.32294244,156.04,156.01,54.48368693]
[1750071854028,6.32294244,156.05,156.01,54.48368693]
[1750071855758,6.32294244,156.04,156.01,54.48368693]
[1750071855958,6.32294244,156.03,156.01,22.43445932]
[1750071856261,6.32294244,156.02,156.01,22.43445932]
[1750071856833,6.32294244,156.02,156.01,6.40984552]
[1750071857261,6.32294244,156.02,156.0,1137.674971]
[1750071857553,26.0,156.01,156.0,1137.674971]
[1750071857858,32.32294244,156.01,156.0,1137.674971]
[1750071858357,32.60726558,156.01,156.0,1131.2649]
[1750071859173,57.75691444,156.01,156.0,1131.2649]
[1750071859464,43.82906973,156.01,156.0,1131.2649]
[1750071860450,30.72180415,156.01,156.0,1137.67515641]
[1750071860646,26.0,156.01,156.0,1137.67515641]
[1750071860936,6.32294244,156.02,156.0,1153.70079743]
[1750071861243,7.95734244,156.03,156.0,1153.70079743]
[1750071862336,6.32294244,156.03,156.0,1153.70079743]
[1750071862548,52.12,156.04,156.0,1153.70079743]
[1750071862756,6.32294244,156.05,156.0,1153.70079743]
[1750071862940,6.29028784,156.07,156.02,6.32294244]
[1750071863141,33.91204244,156.07,156.02,6.32294244]
[1750071863447,1.5891,156.07,156.03,22.43158366]
[1750071863656,6.32294244,156.07,156.03,28.7545261]
[1750071864665,32.32294244,156.07,156.03,28.7545261]
[1750071864831,26.0,156.07,156.03,28.7545261]
[1750071865256,26.0,156.07,156.03,22.43158366]
[1750071865563,26.0,156.07,156.04,6.32294244]
[1750071865761,26.0,156.07,156.05,6.40820249]
[1750071866141,6.32294244,156.06,156.05,6.40820249]
[1750071867045,6.32294244,156.06,156.03,16.02255976]
[1750071867254,6.32294244,156.05,156.03,16.02255976]
[1750071867839,6.32294244,156.06,156.03,16.02255976]
[1750071868770,26.0,156.07,156.03,16.02255976]
[1750071869069,6.32294244,156.05,156.01,22.43445932]
[1750071869267,26.0,156.07,156.01,22.43445932]
[1750071869567,6.32294244,156.05,156.01,28.75740176]
[1750071871452,26.0,156.07,156.01,28.75740176]
[1750071871654,6.32294244,156.05,156.01,28.75740176]
[1750071872666,6.32294244,156.05,156.01,22.43445932]
[1750071872872,6.32294244,156.05,156.01,28.75740176]
[1750071874348,26.0,156.07,156.01,28.75740176]
[1750071874558,6.32294244,156.06,156.02,6.32294244]
[1750071874768,6.32294244,156.06,156.01,22.43445932]
[1750071875068,30.70279825,156.07,156.01,28.75740176]
[1750071875244,6.32294244,156.06,156.01,28.75740176]
[1750071878297,6.32294244,156.06,156.01,22.43445932]
[1750071878501,6.32294244,156.05,156.01,28.75740176]
[1750071879568,6.32294244,156.06,156.01,28.75740176]
[1750071880196,6.32294244,156.05,156.01,22.43445932]
[1750071880378,6.32294244,156.05,156.01,28.75740176]
[1750071881901,6.32294244,156.05,156.01,22.43445932]
[1750071882277,6.32294244,156.05,156.01,28.75740176]
[1750071882486,6.32294244,156.05,156.01,22.43445932]
[1750071882685,6.32294244,156.04,156.01,22.43445932]
[1750071882871,6.32294244,156.03,156.01,22.43445932]
[1750071883074,1.519,156.06,156.01,22.43445932]
[1750071883075,6.32294244,156.04,156.01,22.43445932]
[1750071884187,6.32294244,156.03,156.01,22.43445932]
[1750071886310,6.32294244,156.02,156.01,22.43445932]
[1750071887500,6.32294244,156.02,156.01,6.40984552]
[1750071888414,6.32294244,156.02,156.0,1131.2649]
[1750071888730,34.26066558,156.01,156.0,1131.2649]
[1750071888921,38.96346383,156.01,156.0,1131.2649]
[1750071889687,32.64052139,156.01,156.0,1137.67515641]
[1750071889893,38.67914069,156.01,156.0,1137.67515641]
[1750071891097,38.96346383,156.01,156.0,1131.2649]
[1750071891295,57.61311269,156.01,156.0,1131.2649]
[1750071892399,38.96346383,156.01,156.0,1131.2649]
[1750071892615,32.35619825,156.01,156.0,1137.67515641]
[1750071892829,38.67914069,156.01,156.0,1131.2649]
[1750071893025,38.67914069,156.01,156.0,1137.67515641]
[1750071893938,32.35619825,156.01,156.0,1137.67515641]
[1750071894236,57.61311269,156.01,156.0,1131.2649]
[1750071894417,63.93605513,156.01,156.0,1131.2649]
[1750071896822,65.26346383,156.01,156.0,1137.67515641]
[1750071897019,79.48171478,156.01,156.0,1137.67515641]
[1750071897213,65.26346383,156.01,156.0,1137.67515641]
[1750071898018,65.26346383,156.01,156.0,1131.2649]
[1750071901648,63.32574069,156.01,156.0,1137.67515641]
[1750071904451,66.67010019,156.01,156.0,1137.67515641]
[1750071904948,60.34715775,156.01,156.0,1137.67515641]
[1750071905164,40.37010019,156.01,156.0,1137.67515641]
[1750071905324,9.66730194,156.01,156.0,1137.67515641]
[1750071905520,14.37478551,156.01,156.0,1137.67515641]
[1750071905720,9.66730194,156.01,156.0,1137.67515641]
[1750071905952,14.37455484,156.01,156.0,1137.67515641]
[1750071906729,9.66730194,156.01,156.0,1137.67515641]
[1750071907350,3.3443595,156.01,156.0,1137.67515641]
[1750071907549,13.84097496,156.02,156.0,1137.67515641]
[1750071907949,6.32294244,156.01,156.0,1137.67515641]
[1750071908333,13.84097496,156.02,156.0,1137.67515641]
[1750071908558,6.32294244,156.01,156.0,1137.67515641]
[1750071913247,3.34366044,156.03,156.0,1153.70079743]
[1750071913573,6.32294244,156.01,156.0,1153.70079743]
[1750071915483,3.34366044,156.03,156.0,1153.70079743]
[1750071915689,6.32294244,156.01,156.0,1153.70079743]
[1750071917071,3.34366044,156.03,156.0,1153.70079743]
[1750071917271,6.32294244,156.01,156.0,1153.70079743]
[1750071920768,6.32294244,156.02,156.0,1153.70079743]
[1750071921373,6.32294244,156.01,156.0,1153.70079743]
[1750071923764,3.34366044,156.03,156.0,1153.70079743]
[1750071924082,6.32294244,156.01,156.0,1153.70079743]
[1750071926671,3.34366044,156.03,156.0,1153.70079743]
[1750071926887,6.32294244,156.02,156.0,1153.70079743]
[1750071928362,3.34366044,156.03,156.0,1153.70079743]
[1750071928564,6.32294244,156.02,156.0,1153.70079743]
[1750071929182,3.34366044,156.03,156.0,1160.02373987]
[1750071929586,11.03362121,156.05,156.0,1160.02373987]
[1750071929775,6.32294244,156.05,156.0,1160.02373987]
[1750071929966,11.03362121,156.05,156.0,1160.02373987]
[1750071931062,6.32294244,156.05,156.01,6.32294244]
[1750071931283,35.66582259,156.06,156.01,6.32294244]
[1750071932175,9.66582259,156.06,156.01,6.32294244]
[1750071932764,9.66582259,156.06,156.02,22.43302139]
[1750071934291,6.32294244,156.05,156.02,22.43302139]
[1750071935286,3.34288015,156.06,156.02,22.43302139]
[1750071935590,6.32294244,156.05,156.02,22.43302139]
[1750071938670,6.32294244,156.05,156.02,16.02358671]
[1750071939883,6.32294244,156.05,156.02,22.43302139]
[1750071940089,3.34288015,156.06,156.02,22.43302139]
[1750071940384,6.32294244,156.05,156.02,22.43302139]
[1750071942095,6.32294244,156.05,156.02,16.02358671]
[1750071943399,3.34288015,156.06,156.02,16.02358671]
[1750071943582,6.32294244,156.05,156.02,16.02358671]
[1750071944383,6.32294244,156.04,156.02,16.02358671]
[1750071944882,4.0524418,156.04,156.02,16.02358671]
[1750071947616,3.34288015,156.06,156.02,16.02358671]
[1750071948126,4.0524418,156.04,156.02,16.02358671]
[1750071948852,3.34288015,156.06,156.02,20.07602851]
[1750071948988,7.39532195,156.06,156.02,20.07602851]
[1750071949308,3.34288015,156.06,156.02,20.07602851]
[1750071949515,3.34288015,156.06,156.03,4.0524418]
[1750071949708,3.34288015,156.06,156.04,6.40861317]
[1750071950213,4.0524418,156.07,156.04,22.43014611]
[1750071950806,6.3293562,156.07,156.04,22.43014611]
[1750071951791,29.34249591,156.08,156.04,22.43014611]
[1750071952115,34.06170868,156.08,156.04,22.43014611]
[1750071952307,6.3293562,156.07,156.04,22.43014611]
[1750071952508,34.06170868,156.08,156.04,22.43014611]
[1750071952738,6.3293562,156.07,156.04,22.43014611]
[1750071952938,34.06170868,156.08,156.04,22.43014611]
[1750071953135,29.34249591,156.08,156.04,22.43014611]
[1750071953324,34.06170868,156.08,156.04,22.43014611]
[1750071953524,6.3293562,156.07,156.04,22.43014611]
[1750071956631,29.34249591,156.08,156.04,22.43014611]
[1750071956833,3.34249591,156.08,156.04,28.75950231]
[1750071957143,9.67185211,156.08,156.04,28.75950231]
[1750071957532,3.34249591,156.08,156.04,28.75950231]
[1750071957733,9.67185211,156.08,156.04,28.75950231]
[1750071959025,3.34249591,156.08,156.04,28.75950231]
[1750071959239,9.67185211,156.08,156.04,28.75950231]
[1750071959732,3.34249591,156.08,156.04,28.75950231]
[1750071959928,9.67185211,156.08,156.04,28.75950231]
[1750071960431,3.34249591,156.08,156.04,28.75950231]
[1750071960832,6.3293562,156.09,156.04,60.80256819]
[1750071961034,9.67161318,156.09,156.04,60.80256819]
[1750071961227,3.34225698,156.09,156.04,60.80256819]
[1750071961466,4.71921277,156.1,156.08,6.3293562]
[1750071961624,22.60196861,156.13,156.09,6.3293562]
[1750071962161,17.88275584,156.13,156.1,6.3293562]
[1750071962726,17.88275584,156.13,156.11,6.40573954]
[1750071964258,24.21211204,156.13,156.11,6.40573954]
[1750071964437,17.88275584,156.13,156.11,6.40573954]
[1750071964642,6.3293562,156.12,156.11,6.40573954]
[1750071964842,17.88275584,156.13,156.1,16.01514687]
[1750071965147,6.3293562,156.12,156.1,16.01514687]
[1750071965843,17.88275584,156.13,156.1,16.01514687]
[1750071966043,24.21211204,156.13,156.1,16.01514687]
[1750071966929,24.21211204,156.13,156.1,22.42129677]
[1750071967156,17.88275584,156.13,156.1,22.42129677]
[1750071967338,6.3293562,156.13,156.1,22.42129677]
[1750071970280,9.67074566,156.14,156.1,22.42129677]
[1750071970455,9.67074566,156.14,156.1,28.75065297]
[1750071971053,3.34138946,156.14,156.1,28.75065297]
[1750071971260,9.67074566,156.14,156.1,28.75065297]
[1750071971675,3.34138946,156.14,156.1,28.75065297]
[1750071972009,9.67074566,156.14,156.1,28.75065297]
[1750071973000,6.3293562,156.16,156.12,6.3293562]
[1750071974098,9.67000618,156.17,156.12,6.3293562]
[1750071974503,3.34064998,156.17,156.12,6.3293562]
[1750071974675,9.67000618,156.17,156.12,6.3293562]
[1750071975118,9.67000618,156.17,156.13,22.41721641]
[1750071975299,6.3293562,156.14,156.13,22.41721641]
[1750071976085,3.34064998,156.17,156.13,22.41721641]
[1750071976489,6.3293562,156.16,156.13,22.41721641]
[1750071977281,6.3293562,156.16,156.13,16.01229744]
[1750071977698,9.67000618,156.17,156.13,16.01229744]
[1750071978405,9.67000618,156.17,156.13,22.34165364]
[1750071978591,6.3293562,156.16,156.13,16.01229744]
[1750071979104,6.3293562,156.16,156.13,22.41721641]
[1750071981491,3.34064998,156.17,156.13,22.41721641]
[1750071981693,6.3293562,156.16,156.13,22.41721641]
[1750071981893,3.34064998,156.17,156.13,22.41721641]
[1750071982198,6.3293562,156.16,156.13,22.41721641]
[1750071982991,3.34064998,156.17,156.13,28.74657261]
[1750071983189,32.3293562,156.18,156.15,22.41434517]
[1750071983698,6.3293562,156.18,156.15,22.41434517]
[1750071984095,29.34022007,156.2,156.15,22.41434517]
[1750071984293,6.3293562,156.18,156.15,22.41434517]
[1750071984897,29.34022007,156.2,156.15,22.41434517]
[1750071985098,6.3293562,156.18,156.15,22.41434517]
[1750071986693,6.3293562,156.18,156.14,6.3293562]
[1750071987605,6.3293562,156.19,156.15,6.3293562]
[1750071988625,6.3293562,156.21,156.17,6.3293562]
[1750071989130,1.5007,156.22,156.17,6.3293562]
[1750071989297,1.5007,156.22,156.13,26.94161043]
[1750071989298,9.66901414,156.23,156.18,6.3293562]
[1750071989488,6.3293562,156.22,156.18,6.3293562]
[1750071989693,3.33965794,156.23,156.18,6.3293562]
[1750071990093,6.3293562,156.22,156.18,6.3293562]
[1750071990526,3.33965794,156.23,156.18,6.3293562]
[1750071990696,6.3293562,156.22,156.18,6.3293562]
[1750071991110,6.3293562,156.22,156.19,6.40245854]
[1750071991394,3.33965794,156.23,156.19,6.40245854]
[1750071991599,6.3293562,156.22,156.19,6.40245854]
[1750071992407,6.3293562,156.21,156.19,6.40245854]
[1750071992594,3.33965794,156.23,156.19,6.40245854]
[1750071992796,6.3293562,156.22,156.19,6.40245854]
[1750071993197,6.3293562,156.22,156.18,6.40286848]
[1750071993415,3.33965794,156.23,156.18,6.40286848]
[1750071993601,29.33965794,156.23,156.18,6.40286848]
[1750071993805,6.3293562,156.19,156.18,6.40286848]
[1750071995322,6.3293562,156.19,156.16,6.40368852]
[1750071995996,34.03624079,156.23,156.16,6.40368852]
[1750071996193,6.3293562,156.19,156.16,6.40368852]
[1750071996822,34.03624079,156.23,156.16,6.40368852]
[1750071997024,6.3293562,156.19,156.16,6.40368852]
[1750071997327,6.3293562,156.19,156.15,6.40409862]
[1750071998534,6.3293562,156.19,156.15,28.74370137]
[1750071999834,34.03624079,156.23,156.15,22.41434517]
[1750072000029,6.3293562,156.19,156.15,16.01024655]
[1750072000329,6.3293562,156.19,156.15,22.33960275]
[1750072000627,6.3293562,156.19,156.15,16.01024655]
[1750072000822,6.3293562,156.19,156.15,22.33960275]
[1750072002532,6.3293562,156.19,156.15,28.74370137]
[1750072003733,6.3293562,156.17,156.15,22.41434517]
[1750072004530,6.3293562,156.17,156.15,16.01024655]
[1750072004857,1.655,156.21,156.15,16.01024655]
[1750072005157,6.3293562,156.17,156.15,16.01024655]
[1750072005313,6.3293562,156.16,156.14,6.40450877]
[1750072005513,6.3293562,156.15,156.14,6.40450877]
[1750072006026,6.3293562,156.15,156.1,6.4061499]
[1750072006223,6.3293562,156.12,156.1,6.4061499]
[1750072006432,6.3293562,156.11,156.1,22.42152465]
[1750072006611,6.3293562,156.11,156.1,6.4061499]
[1750072008736,6.3293562,156.11,156.04,22.43014611]
[1750072008946,6.3293562,156.07,156.04,22.43014611]
[1750072009914,3.34246474,156.12,156.04,60.80256819]
[1750072010114,6.3293562,156.1,156.05,6.3293562]
[1750072010326,6.3293562,156.09,156.05,6.3293562]
[1750072010541,6.3293562,156.09,156.04,60.80256819]
[1750072011646,6.3293562,156.09,156.04,54.47321199]
[1750072011844,6.3293562,156.09,156.04,60.80256819]
[1750072012045,6.3293562,156.09,156.05,25.2633282]
[1750072012232,6.3293562,156.11,156.06,6.3293562]
[1750072012544,9.67182094,156.12,156.07,6.3293562]
[1750072012848,6.3293562,156.11,156.08,22.42439774]
[1750072017538,6.3293562,156.1,156.06,60.79558712]
[1750072017846,6.3293562,156.08,156.06,54.46623092]
[1750072018047,6.3293562,156.07,156.06,22.42727155]
[1750072019055,3.34246474,156.12,156.04,54.47321199]
[1750072019229,6.3293562,156.07,156.04,54.47321199]
[1750072020328,6.3293562,156.08,156.04,60.80256819]
[1750072020545,6.3293562,156.08,156.04,54.47321199]
[1750072020730,6.3293562,156.08,156.04,60.80256819]
[1750072024149,6.3293562,156.08,156.04,54.47321199]
[1750072024349,6.3293562,156.07,156.04,22.43014611]
[1750072024658,6.3293562,156.06,156.04,22.43014611]
[1750072024833,6.3293562,156.07,156.04,22.43014611]
[1750072025755,6.3293562,156.08,156.04,28.75950231]
[1750072026531,35.75406474,156.12,156.04,28.75950231]
[1750072026732,6.3293562,156.09,156.05,6.3293562]
[1750072026941,35.75406474,156.12,156.05,6.3293562]
[1750072027241,6.3293562,156.09,156.05,6.3293562]
[1750072027440,6.3293562,156.09,156.04,28.75950231]
[1750072027841,6.3293562,156.08,156.04,28.75950231]
[1750072028051,6.3293562,156.06,156.04,6.40861317]
[1750072028367,6.3293562,156.05,156.04,6.40861317]
[1750072028667,6.3293562,156.08,156.04,6.40861317]
[1750072028840,6.3293562,156.05,156.04,6.40861317]
[1750072029560,6.3293562,156.07,156.04,6.40861317]
[1750072029757,6.3293562,156.07,156.03,22.43154837]
[1750072030267,9.67245766,156.07,156.03,22.43154837]
[1750072030839,6.3293562,156.06,156.03,22.43154837]
[1750072031040,29.34310146,156.07,156.03,22.43154837]
[1750072031240,6.3293562,156.06,156.03,22.43154837]
[1750072031938,35.67245766,156.07,156.03,22.43154837]
[1750072032773,6.3293562,156.06,156.03,22.43154837]
[1750072033666,6.3293562,156.05,156.03,22.43154837]
[1750072033870,6.3293562,156.05,156.0,1131.2649]
[1750072033871,6.3293562,156.04,156.01,6.40984552]
[1750072034040,6.3293562,156.03,156.01,6.40984552]
[1750072034240,6.3293562,156.04,156.01,6.40984552]
[1750072034557,6.3293562,156.04,156.01,22.43445932]
[1750072035949,6.3293562,156.03,156.01,22.43445932]
[1750072036267,26.0,156.05,156.01,22.43445932]
[1750072036571,6.3293562,156.03,156.01,22.43445932]
[1750072038167,6.3293562,156.02,156.01,22.43445932]
[1750072038465,6.3293562,156.02,156.01,6.40984552]
[1750072038980,32.3293562,156.02,156.0,1137.67511895]
[1750072039177,6.3293562,156.01,156.0,1137.67511895]
[1750072042785,26.0,156.02,156.0,1137.67511895]
[1750072043167,13.3989091,156.04,156.0,1153.70075997]
[1750072043168,19.7282653,156.04,156.0,1153.70075997]
[1750072044186,6.3293562,156.04,156.0,1153.70075997]
[1750072045571,6.3293562,156.04,156.0,1160.03011617]
[1750072045980,6.3293562,156.04,156.0,1153.70075997]
[1750072049501,6.3293562,156.03,156.0,1153.70075997]
[1750072050675,9.6729839,156.04,156.0,1153.70075997]
[1750072050879,9.6729839,156.04,156.0,1160.03011617]
[1750072051076,3.3436277,156.04,156.0,1160.03011617]
[1750072052696,9.6729839,156.04,156.0,1160.03011617]
[1750072053569,9.6729839,156.04,156.0,1153.70075997]
[1750072053982,6.3293562,156.03,156.0,1153.70075997]
[1750072057754,6.3293562,156.01,156.0,1137.67511895]
[1750072058179,6.3293562,156.01,156.0,1131.2649]
[1750072058509,32.3293562,156.01,156.0,1131.2649]
[1750072060004,51.2633282,156.01,156.0,1131.2649]
[1750072060317,70.13371236,156.01,156.0,1131.2649]
[1750072061619,70.13371236,156.01,156.0,1053.24119192]
[1750072061800,84.98685788,156.01,156.0,1008.0387873]
[1750072062132,78.57701236,156.01,156.0,1001.3721873]
[1750072062337,110.45701236,156.01,156.0,1001.3721873]
[1750072062493,55.91829996,156.01,156.0,1001.3721873]
[1750072062699,94.81701236,156.01,156.0,1001.3721873]
[1750072064328,88.53031236,156.01,156.0,1001.3721873]
[1750072064628,101.0674691,156.01,156.0,1001.3721873]
[1750072066122,88.53031236,156.01,156.0,1001.3721873]
[1750072066721,165.933972,156.0,155.79,1.5859]
[1750072066913,165.933972,156.0,155.81,6.3293562]
[1750072066914,26.0,155.87,155.81,6.3293562]
[1750072067115,26.0,155.87,155.82,6.3293562]
[1750072067116,52.24,155.87,155.82,6.3293562]
[1750072067312,52.24,155.87,155.81,6.3293562]
[1750072067909,52.24,155.87,155.82,6.4176614]
[1750072068226,52.24,155.87,155.8,6.41848523]
[1750072068425,32.5693562,155.89,155.84,6.3293562]
[1750072068599,32.5693562,155.89,155.85,6.1596]
[1750072069004,26.24,155.91,155.87,6.3293562]
[1750072069223,32.5693562,155.91,155.86,6.3293562]
[1750072069500,6.3293562,155.9,155.86,6.3293562]
[1750072069726,4.69586663,155.9,155.86,6.3293562]
[1750072069927,4.69593078,155.9,155.87,6.41560274]
[1750072070109,4.69595403,155.9,155.87,12.74495894]
[1750072070309,26.21334479,155.9,155.87,12.74495894]
[1750072070528,21.5175224,155.9,155.87,6.41560274]
[1750072070827,26.21354777,155.9,155.87,6.41560274]
[1750072071340,4.69593234,155.89,155.87,12.74495894]
[1750072071510,21.5175224,155.9,155.87,6.41560274]
[1750072071702,4.69596301,155.89,155.87,6.41560274]
[1750072071905,21.5175224,155.9,155.87,6.41560274]
[1750072072227,4.71100897,155.89,155.87,6.41560274]
[1750072072420,4.71095928,155.88,155.87,6.41560274]
[1750072072754,32.5693562,155.91,155.87,6.41560274]
[1750072072928,4.71093648,155.9,155.88,6.3293562]
[1750072073225,17.61286328,155.9,155.87,22.4546096]
[1750072073427,4.71170832,155.93,155.89,6.3293562]
[1750072073641,4.71170788,155.92,155.91,6.3293562]
[1750072074425,4.71210214,155.92,155.91,6.3293562]
[1750072074622,4.71216364,155.92,155.91,6.3293562]
[1750072074808,4.7121928,155.92,155.87,54.53262332]
[1750072075015,4.7121928,155.91,155.9,6.3293562]
[1750072075216,4.71218823,155.94,155.9,6.3293562]
[1750072075420,4.71219509,155.93,155.9,6.3293562]
[1750072075621,4.7121928,155.92,155.91,6.3293562]
[1750072075824,32.5693562,155.95,155.87,48.11702058]
[1750072076126,4.71201612,155.94,155.92,6.4135454]
[1750072076323,32.5693562,155.95,155.92,6.4135454]
[1750072076907,4.71211528,155.94,155.92,6.4135454]
[1750072077101,32.5693562,155.95,155.92,6.4135454]
[1750072077614,4.71213049,155.94,155.92,6.4135454]
[1750072077923,32.5693562,155.95,155.91,12.74331296]
[1750072078317,4.68838515,155.94,155.91,6.41395676]
[1750072078518,32.5693562,155.95,155.91,12.74331296]
[1750072078830,4.68835614,155.94,155.91,12.74331296]
[1750072079009,4.68833961,155.94,155.91,12.74331296]
[1750072079212,11.01772343,155.94,155.87,32.07801372]
[1750072079608,11.01759444,155.94,155.9,6.3293562]
[1750072079822,4.68824505,155.94,155.9,6.3293562]
[1750072080014,32.5693562,155.95,155.9,6.3293562]
[1750072080213,4.68823377,155.94,155.9,6.3293562]
[1750072080633,4.68825951,155.94,155.9,6.3293562]
[1750072081133,4.68823911,155.94,155.9,6.3293562]
[1750072081334,4.68823911,155.94,155.91,6.41395676]
[1750072081639,4.68821237,155.94,155.91,6.41395676]
[1750072081822,4.68817594,155.94,155.91,6.41395676]
[1750072082135,11.01765346,155.94,155.91,6.41395676]
[1750072082330,11.0182489,155.94,155.91,6.41395676]
[1750072082511,11.01824683,155.94,155.91,6.41395676]
[1750072082711,6.3293562,155.93,155.91,6.41395676]
[1750072082918,6.3293562,155.94,155.91,6.41395676]
[1750072083316,4.68869073,155.94,155.91,6.41395676]
[1750072083512,32.5693562,155.95,155.91,6.41395676]
[1750072083716,4.68889851,155.94,155.91,6.41395676]
[1750072083922,4.68889851,155.94,155.91,12.74331296]
[1750072084123,4.6889439,155.94,155.91,12.74331296]
[1750072084436,4.68892429,155.94,155.91,12.74331296]
[1750072084613,26.0,155.94,155.91,12.74331296]
[1750072086716,26.0,155.94,155.91,28.77820488]
[1750072086717,26.0,155.93,155.91,28.77820488]
[1750072088121,26.0,155.93,155.91,22.44884868]
[1750072088322,26.0,155.93,155.92,12.7429016]
[1750072089230,26.0,155.93,155.92,6.4135454]
[1750072090421,26.0,155.94,155.92,6.4135454]
[1750072090619,26.0,155.94,155.92,12.7429016]
[1750072090824,26.0,155.93,155.92,12.7429016]
[1750072091233,32.5693562,155.97,155.92,28.77676511]
[1750072091432,4.69069458,155.96,155.92,28.77676511]
[1750072091616,4.69069195,155.96,155.92,28.77676511]
[1750072091819,58.5693562,155.97,155.92,28.77676511]
[1750072092033,11.02007251,155.96,155.92,28.77676511]
[1750072092339,11.02001749,155.96,155.92,28.77676511]
[1750072092637,6.3293562,155.96,155.92,28.77676511]
[1750072093022,11.02001749,155.96,155.92,28.77676511]
[1750072093237,11.02001522,155.96,155.92,28.47553511]
[1750072093639,6.3293562,155.96,155.92,28.47553511]
[1750072093845,3.34490516,155.95,155.92,22.14617891]
[1750072094144,3.34490516,155.95,155.92,28.47553511]
[1750072097825,3.34490516,155.95,155.94,6.41272284]
[1750072098227,29.34490516,155.95,155.94,6.41272284]
[1750072098425,34.04013355,155.95,155.94,6.41272284]
[1750072098923,34.04011318,155.95,155.94,6.41272284]
[1750072099826,29.34490516,155.95,155.94,6.41272284]
[1750072100136,34.04013355,155.95,155.94,6.41272284]
[1750072100530,29.34490516,155.95,155.93,6.3293562]
[1750072100728,29.34490516,155.95,155.92,22.36321971]
[1750072101651,29.34490516,155.95,155.93,6.41313409]
[1750072101825,4.69495997,155.94,155.93,6.41313409]
[1750072102229,35.67426136,155.95,155.93,6.41313409]
[1750072102425,4.70960689,155.94,155.93,6.41313409]
[1750072103125,4.70954557,155.94,155.92,22.44740891]
[1750072103446,4.70954329,155.94,155.92,22.44740891]
[1750072103739,29.34490516,155.95,155.92,22.44740891]
[1750072103942,4.70954557,155.94,155.92,22.44740891]
[1750072104149,4.7095423,155.94,155.92,22.44740891]
[1750072104441,29.34490516,155.95,155.92,22.44740891]
[1750072104759,4.70954557,155.94,155.92,22.44740891]
[1750072104934,29.34490516,155.95,155.92,22.44740891]
[1750072105447,4.73068117,155.94,155.92,22.44740891]
[1750072105646,4.73068117,155.93,155.92,28.77676511]
[1750072105947,29.34490516,155.95,155.92,28.77676511]
[1750072106132,4.73067658,155.94,155.92,28.77676511]